Cogmind - Beta 9.1 @@@ ROGUE MODE // 2019.11.03 @ 03:56:31 Player: MrPainting Result: Self-destructed Performance ------------- Evolutions (2) 1000 Regions Visited (5) 1000 Robots Destroyed (28) 140 Value Destroyed (457) 457 Prototype IDs (6) 120 Alien Tech Used (0) 0 Bonus (300) 300 TOTAL SCORE: 3017 Bonus ------- Aligned with FarCom 300 Cogmind --------- Core Integrity 488/550 Matter 6/300 Energy 136/140 System Corruption 0% Temperature Cool (0) Location -8/Materials Parts ------- Power (1) Light Deuterium Engine Propulsion (3) Improved Hover Unit Flight Unit Utility (4) Small Storage Unit Weight Redist. System Launcher Guidance Computer Improved Light Armor Plating Weapon (3) Inventory (6) Weight Redist. System Shock Absorption System Shock Rifle AWS/Autocannon Peak State ------------ Power Light Deuterium Engine Propulsion Flight Unit Flight Unit Utility Small Storage Unit Weight Redist. System Weapon AWS/Autocannon Inventory Launcher Guidance Computer Improved Light Armor Plating Shock Absorption System [Rating: 39] Favorites ----------- Power Light Ion Engine Engine Light Ion Engine Propulsion Hover Unit Leg Aluminum Leg Hover Unit Hover Unit Flight Unit Flight Unit Utility Small Storage Unit Device Weight Redist. System Storage Small Storage Unit Processor Signal Interpreter Protection Improved Light Armor Plating Weapon Beam Rifle Energy Gun Beam Rifle Energy Cannon Ion Cannon Ballistic Gun Light Assault Rifle Ballistic Cannon Improved Light Cannon Launcher Mini Grenade Launcher Build | -11 -10 -10 -10 -9 -8 ------- Run | Scr Mat Min Exi Min Mat Slots Evolved 4 | . . . . . 4 Power . | . . . . . . Propulsion 1 | . . . . . 1 Utility 2 | . . . . . 2 Weapon 1 | . . . . . 1 Parts Attached 46 | 2 19 6 4 4 11 Power 3 | . 2 1 . . . Engine 3 | . 2 1 . . . Core . | . . . . . . Reactor . | . . . . . . Propulsion 10 | . 5 . . 4 1 Treads . | . . . . . . Leg 3 | . 2 . . 1 . Wheel . | . . . . . . Hover 4 | . 3 . . . 1 Flight 3 | . . . . 3 . Utility 12 | . 5 2 2 . 3 Device 3 | . 1 . 1 . 1 Storage 4 | . 2 1 1 . . Processor 3 | . 2 . . . 1 Hackware . | . . . . . . Protection 2 | . . 1 . . 1 Artifact . | . . . . . . Weapon 21 | 2 7 3 2 . 7 Energy Gun 7 | 1 5 . . . 1 Energy Cannon 3 | . . . 1 . 2 Ballistic Gun 1 | 1 . . . . . Ballistic Cannon 2 | . . . . . 2 Launcher 8 | . 2 3 1 . 2 Special Weapon . | . . . . . . Impact Weapon . | . . . . . . Slashing Weapon . | . . . . . . Piercing Weapon . | . . . . . . Special Melee Weapon . | . . . . . . Unidentified Prototypes 3 | . . . 2 . 1 Parts Lost 4 | . 1 1 . 1 1 Power . | . . . . . . Propulsion 3 | . . 1 . 1 1 Utility . | . . . . . . Weapon 1 | . 1 . . . . Highest Loss Streak 1 | . 1 1 . 1 1 Average Slot Usage (%) 87 | . 89 83 83 96 76 Engine 13 | . 13 14 14 14 9 Leg 6 | . 10 . . 10 . Hover 12 | . 13 17 14 10 . Flight 2 | . . . . 3 17 Device 6 | . 1 14 14 14 9 Storage 11 | . 10 7 13 14 9 Processor 7 | . 12 . . . 7 Protection 1 | . . 7 . . 7 Energy Gun 14 | . 27 5 . . . Launcher 11 | . . 17 27 28 16 Naked Turns . | . . . . . . Heaviest Build 14 | 3 13 11 11 11 14 Greatest Support 20 | 3 20 18 12 16 14 Greatest Overweight (x) 2 | . 2 . . . 1 Average Overweight (x) . | . 1 . . . . Largest Inventory Capacity 10 | 4 10 6 6 6 6 Average Capacity 5 | 4 5 4 5 6 6 Most Carried 6 | 4 6 6 6 6 6 Average Carried 4 | 2 4 4 5 6 5 Final Capacity 6 | 4 6 6 6 6 6 Final Carried 6 | 4 3 6 6 6 6 Class Distribution -------------------- 57% | Mutant 42% | Scavenger-Mutant Dominant Class ---------------- Mutant | -10/Materials Mutant | -10/Mines Scavenger-Mutant | -10/Exiles Scavenger-Mutant | -9/Mines Scavenger-Mutant | -8/Materials Resources | -11 -10 -10 -10 -9 -8 ----------- Run | Scr Mat Min Exi Min Mat Matter Collected 584 | 171 202 85 . 56 70 Remotely . | . . . . . . Salvage Created 580 | . 257 . . 168 155 Parts 49 | . 21 . . 10 18 Haulers Intercepted 3 | . 1 . . . 2 Recyclers Shooed 2 | . . . . . 2 Parts Field Recycled . | . . . . . . Retrieved Matter . | . . . . . . Parts Self-Destructed . | . . . . . . Prevented . | . . . . . . Kills | -11 -10 -10 -10 -9 -8 ------- Run | Scr Mat Min Exi Min Mat Combat Hostiles Destroyed 21 | . 8 . . 7 6 Guns 5 | . 5 . . . . AOE 16 | . 3 . . 7 6 Classes Destroyed 7 | . 4 . . 2 1 Builder 1 | . . . . . 1 Hauler 3 | . 1 . . . 2 Recycler 1 | . . . . 1 . Watcher 2 | . 1 . . . 1 Swarmer 15 | . 6 . . 4 5 Grunt 5 | . 2 . . 2 1 Brawler 1 | . . . . 1 . Best Kill Streak 10 | . 5 . . 5 10 Combat Bots Only 5 | . 5 . . 4 5 Max Kills in Single Turn 6 | . 3 . . 2 6 Gunslinging . | . . . . . . Exploded 4 | . 2 . . 2 4 Melee . | . . . . . . Uniques/NPCs Destroyed . | . . . . . . Combat | -11 -10 -10 -10 -9 -8 -------- Run | Scr Mat Min Exi Min Mat Damage Taken 908 | . 327 198 . 168 215 Core 283 | . 67 81 . 73 62 Absorbed by Shields . | . . . . . . Core Remaining (%) 55 | 100 . . . 11 . Volleys Fired 33 | . 21 . . 6 6 Largest 2 | . 2 . . 2 2 Hottest 112 | . 112 . . 60 60 Shots Fired 61 | . 38 . . 12 11 Gun 36 | . 36 . . . . Cannon . | . . . . . . Launcher 25 | . 2 . . 12 11 Special . | . . . . . . Kinetic . | . . . . . . Thermal 36 | . 36 . . . . Explosive 23 | . . . . 12 11 Electromagnetic 2 | . 2 . . . . Robot Hit Streak 5 | . 5 . . 2 2 Robot Miss Streak 3 | . 3 . . 3 . Penetration Max . | . . . . . . Secondary Targets . | . . . . . . Shots Hit Robots 22 | . 18 . . 2 2 Core Hits 41 | . 12 . . 10 19 Critical Hits . | . . . . . . Critical Kills . | . . . . . . Critical Parts Destroyed . | . . . . . . Melee Attacks . | . . . . . . Impact . | . . . . . . Slashing . | . . . . . . Piercing . | . . . . . . Sneak Attacks . | . . . . . . Combat Hostiles . | . . . . . . Follow-up Attacks . | . . . . . . Damage Inflicted 1445 | . 307 . . 469 669 Guns 232 | . 232 . . . . Cannons . | . . . . . . Explosions 1213 | . 75 . . 469 669 Melee . | . . . . . . Ramming . | . . . . . . Kinetic . | . . . . . . Thermal 232 | . 232 . . . . Explosive 1138 | . . . . 469 669 Electromagnetic 75 | . 75 . . . . Impact . | . . . . . . Slashing . | . . . . . . Piercing . | . . . . . . Highest Corruption . | . . . . . . Average Corruption . | . . . . . . Corruption Purged . | . . . . . . Overload Shots . | . . . . . . Overflow Damage 13 | . . . . . 13 Projectiles . | . . . . . . Explosions 13 | . . . . . 13 Melee . | . . . . . . Knockbacks . | . . . . . . Impact . | . . . . . . Kinetic . | . . . . . . Secondary . | . . . . . . Self-Inflicted Damage 164 | . 20 . . 144 . Shots 7 | . 2 . . 5 . Rammed . | . . . . . . Targets Rammed . | . . . . . . Kicked . | . . . . . . Crushed . | . . . . . . Highest Temperature 518 | . 518 . . 30 10 Average Temperature 142 | . 175 . . 8 3 Received Heat Transfer 117 | . 30 . . 6 81 Effects 7 | . 7 . . . . Energy Bleed 1 | . 1 . . . . Interference 4 | . 4 . . . . Matter Decay 1 | . 1 . . . . Short Circuit 1 | . 1 . . . . Siege Activations . | . . . . . . Robots Corrupted . | . . . . . . Combat Hostiles . | . . . . . . Parts Fried . | . . . . . . Impact Corruptions . | . . . . . . Robots Melted . | . . . . . . Combat Hostiles . | . . . . . . Parts Melted 3 | . 3 . . . . Heat Transferred 592 | . 592 . . . . Parts Sabotaged . | . . . . . . Parts Stolen . | . . . . . . Parts Stripped . | . . . . . . Power Chain Reactions . | . . . . . . Missiles Intercepted . | . . . . . . Alert | -11 -10 -10 -10 -9 -8 ------- Run | Scr Mat Min Exi Min Mat Peak Influence 339 | . 256 25 . 155 339 Average Influence 104 | . 113 18 . 87 164 Maximum Alert Level 1 | . 1 . . . 1 Low Security (%) 93 | . . . . . . Level 1 6 | . . . . . . Level 2 . | . . . . . . Level 3 . | . . . . . . Level 4 . | . . . . . . Level 5 . | . . . . . . High Security . | . . . . . . Max Security . | . . . . . . Squads Dispatched 2 | . 1 . . . 1 Investigation 1 | . 1 . . . . Extermination . | . . . . . . Reinforcement 1 | . . . . . 1 Assault . | . . . . . . Garrison . | . . . . . . Intercept . | . . . . . . Construction Impeded . | . . . . . . Haulers Reinforced . | . . . . . . Stealth | -11 -10 -10 -10 -9 -8 --------- Run | Scr Mat Min Exi Min Mat Distress Signals 2 | . . . . . 2 Communications Jammed . | . . . . . . Distress Signals . | . . . . . . Times Spotted 36 | . 9 8 . 5 14 Peak Tracking Total 10 | . 5 10 . 3 9 Tactical Retreats 3 | . . 1 . . 2 Traps | -11 -10 -10 -10 -9 -8 ------- Run | Scr Mat Min Exi Min Mat Traps Triggered 1 | . 1 . . . . Indirectly . | . . . . . . Trap Hack Attempts . | . . . . . . Triggered . | . . . . . . Disarmed . | . . . . . . Reprogrammed . | . . . . . . Reused . | . . . . . . Traps Extracted . | . . . . . . Installed . | . . . . . . Triggered . | . . . . . . Machines | -11 -10 -10 -10 -9 -8 ---------- Run | Scr Mat Min Exi Min Mat Machines Disabled 3 | . 1 . . . 2 Max in Single Turn 1 | . 1 . . . 1 Machines Sabotaged . | . . . . . . Garrisons Compromised . | . . . . . . Overloaded Fab Kills . | . . . . . . Fab Network Shutdowns . | . . . . . . Hacking | -11 -10 -10 -10 -9 -8 --------- Run | Scr Mat Min Exi Min Mat Machines Accessed 7 | . 6 . . . 1 Terminals 6 | . 5 . . . 1 Fabricators . | . . . . . . Repair Stations 1 | . 1 . . . . Recycling Units . | . . . . . . Scanalyzers . | . . . . . . Garrison Access . | . . . . . . Total Hacks 23 | . 20 . . . 3 Successful 16 | . 15 . . . 1 Failed 7 | . 5 . . . 2 Catastrophic . | . . . . . . Database Lockouts . | . . . . . . Manual 20 | . 16 . 1 . 3 Terminals 20 | . 17 . . . 3 Fabricators . | . . . . . . Repair Stations 3 | . 3 . . . . Recycling Units . | . . . . . . Scanalyzers . | . . . . . . Garrison Access . | . . . . . . Terminal Hacks 4 | . 4 . . . . Prototype ID Bank 2 | . 2 . . . . Terminal Index 1 | . 1 . . . . Locate Traps 1 | . 1 . . . . Fabricator Hacks . | . . . . . . Repair Station Hacks 2 | . 2 . . . . Scan Component 1 | . 1 . . . . Repair 1 | . 1 . . . . Recycling Unit Hacks . | . . . . . . Scanalyzer . | . . . . . . Garrison Access Hacks . | . . . . . . Unauthorized Hacks 23 | . 19 . . . 4 Terminals 10 | . 9 . . . 1 Track 4 | . 4 . . . . Botnet 6 | . 5 . . . 1 Fabricators . | . . . . . . Repair Stations . | . . . . . . Recycling Units . | . . . . . . Scanalyzers . | . . . . . . Garrison Access . | . . . . . . Data Cores Recovered . | . . . . . . Used . | . . . . . . Hacking Detections 5 | . 4 . . . 1 Full Trace Events . | . . . . . . Feedback Events . | . . . . . . Feedback Blocked . | . . . . . . Robot Schematics Acquired . | . . . . . . Robots Built . | . . . . . . Matter . | . . . . . . Time . | . . . . . . Total Robot Build Rating . | . . . . . . Part Schematics Acquired . | . . . . . . Parts Built . | . . . . . . Matter . | . . . . . . Time . | . . . . . . Total Part Build Rating . | . . . . . . Parts Repaired 1 | . 1 . . . . Time 26 | . 26 . . . . Parts Recycled . | . . . . . . Recycled Matter . | . . . . . . Retrieved Matter . | . . . . . . Retrieved Components . | . . . . . . Parts Scanalyzed . | . . . . . . Part Schematics Acquired . | . . . . . . Parts Damaged . | . . . . . . Bothacking | -11 -10 -10 -10 -9 -8 ------------ Run | Scr Mat Min Exi Min Mat Used RIF Installer . | . . . . . . Robots Hacked . | . . . . . . Non-combat . | . . . . . . Combat . | . . . . . . Robot Hacks Applied . | . . . . . . Relay Couplers Released . | . . . . . . Robots Rewired . | . . . . . . Allies Hacked . | . . . . . . Hacks Repelled . | . . . . . . Allies | -11 -10 -10 -10 -9 -8 -------- Run | Scr Mat Min Exi Min Mat Total Allies . | . . . . . . Largest Group . | . . . . . . Highest-Rated Group . | . . . . . . Highest-Rated Ally . | . . . . . . Total Orders . | . . . . . . Ally Attacks . | . . . . . . Total Damage . | . . . . . . Kills . | . . . . . . Allies Corrupted . | . . . . . . Allies Melted . | . . . . . . Intel | -11 -10 -10 -10 -9 -8 ------- Run | Scr Mat Min Exi Min Mat Robot Analysis Total . | . . . . . . Derelict Logs Recovered 1 | . . 1 . . . Drone Launches . | . . . . . . Drone Recoveries . | . . . . . . Exploration | -11 -10 -10 -10 -9 -8 ------------- Run | Scr Mat Min Exi Min Mat Turns Passed 1218 | 30 630 82 208 153 115 Spaces Moved 1140 | 43 337 108 325 151 176 Core 51 | 43 8 . . . . Treads . | . . . . . . Legs 112 | . 38 . . 74 . Wheels . | . . . . . . Hover 771 | . 291 108 325 30 17 Flight 206 | . . . . 47 159 Fastest Speed 37 | 50 50 56 60 37 37 Average Speed 85 | 50 147 58 60 82 39 Slowest Speed 190 | 50 190 60 60 120 120 Overloaded Moves . | . . . . . . Propulsion Burnouts . | . . . . . . Robots Hopped . | . . . . . . Cave-ins Triggered . | . . . . . . Exploration Rate (%) 32 | 3 51 18 68 40 16 Regions Visited 5 Branch Regions 3 Pre-discovered Areas 1 | . . 1 . . . Known Exits Taken . | . . . . . . Unknown Exits Taken 5 | 1 1 1 1 1 . Scrap Searched 1 | . . 1 . . . Spaces Dug . | . . . . . . Terrain Destroyed 169 | . . . . 120 49 Melee . | . . . . . . Projectile . | . . . . . . AOE 169 | . . . . 120 49 Actions | -11 -10 -10 -10 -9 -8 --------- Run | Scr Mat Min Exi Min Mat Total 1326 | 50 429 126 341 166 214 Wait 39 | . 33 . . 4 2 Move 1135 | 42 336 107 324 150 176 Hop . | . . . . . . Pick Up 33 | 6 10 8 4 . 5 Fast Attach 15 | . 6 . 1 3 5 Attach 21 | 2 9 2 3 . 5 Detach 6 | . . . 2 . 4 Swap 10 | . 4 4 . 1 1 Drop 34 | . 10 5 7 2 10 Fire 33 | . 21 . . 6 6 Melee . | . . . . . . Ram . | . . . . . . Kick . | . . . . . . Crush . | . . . . . . Escape Stasis . | . . . . . . Rewire . | . . . . . . Trap . | . . . . . . Miscellaneous . | . . . . . . Route ------- -11/Scrapyard -10/Materials (discovered 2 exits: [*Mat] / [*Min]) -10/Mines (discovered 2 exits: [*Mat] / *Exi) -10/Exiles -9/Mines -8/Materials History --------- Turn | Location | Event 14 | -11/Scrapyard | Discovered new exit (range 15) 31 | -11/Scrapyard | Entered Materials 314 | -10/Materials | Build established: Mutant 327 | -10/Materials | Discovered new exit (range 11) 491 | -10/Materials | Discovered new exit (range 16) 635 | -10/Materials | Repaired Hover Unit 661 | -10/Materials | Entered Mines 662 | -10/Mines | Assembled infested the area 664 | -10/Mines | Discovered new exit (range 14) 675 | -10/Mines | Met 8R-AWN 676 | -10/Mines | Met a Derelict bent on vengeance 685 | -10/Mines | Learned location of Zion (-6) 686 | -10/Mines | Core integrity fell below 50% 740 | -10/Mines | Discovered new exit (range 5) 743 | -10/Mines | Entered Exiles 757 | -10/Exiles | Welcomed by 8R-AWN 768 | -10/Exiles | Met EX-HEX 786 | -10/Exiles | Met EX-BIN 793 | -10/Exiles | Aligned with FarCom system 793 | -10/Exiles | Given EX-Vault access code 810 | -10/Exiles | Opened EX-Vault 818 | -10/Exiles | Found Prototype Device 818 | -10/Exiles | Identified Trap Reconfigurator 825 | -10/Exiles | Found Prototype Energy Cannon 826 | -10/Exiles | Identified Gui. Plasma Cannon 839 | -10/Exiles | Found Prototype Ballistic Cannon 853 | -10/Exiles | Warned to stay clear of 0b10 Research branches 913 | -10/Exiles | Met EX-DEC 944 | -10/Exiles | Discovered new exit (range 10) 951 | -10/Exiles | Left Exiles lab with AWS/Autocannon 951 | -10/Exiles | Entered Mines 973 | -9/Mines | Core integrity fell below 20% 1000 | -9/Mines | Build established: Scavenger-Mutant 1101 | -9/Mines | Discovered new exit (range 9) 1104 | -9/Mines | Entered Materials 1104 | -8/Materials | Evolved 4 slots: Propulsion x1, Utility x2, Weapon x1 1108 | -8/Materials | Identified AWS/Autocannon 1219 | -8/Materials | Self-destructed Last Messages --------------- 01196_ U-05 Engineer destroyed. 01196_ S-10 Pest destroyed. 01197_ K-01 Serf collects debris. 01197_ U-05 Engineer lays Concrete. 01198_ R-06 Scavenger collects Adv. Beam Cannon. 01199_ U-05 Engineer lays Concrete. 01200_ K-01 Serf collects debris. 01200_ U-05 Engineer lays Concrete. 01201_ U-05 Engineer builds a Wall. 01202_ R-06 Scavenger collects Adv. Beam Cannon. 01203_ Acquired 8 matter. 01203_ Flight Unit destroyed. 01205_ Acquired Imp. Hover Unit. 01205_ U-05 Engineer builds a Wall. 01206_ U-05 Engineer destroyed. 01206_ Terminal disabled. 01206_ R-06 Scavenger collects Prototype Ballistic Gun. 01207_ Acquired 7 matter. 01211_ W-25 Informer sends out distress signal. 01217_ Dropped Mni. Grenade Launcher. Map ----- +----------------------------------------------------+ | ???????????# ? #???????????????????????????????? | | ???????????# ? #???????????????????????????????? | | ???????????# """ #???????????????????????????????? | | ############ """ #???????????????????????????????? | | # # """ #???????????????????????????????? | | #] + #???????????????????????????????? | | # """ # """ #######?????????????????????????? | | # """"" # R" ##!!!!###???????????????????????? | | # """ " """ #! ! #???????????????????????? | | "" #! ! ######??????????????????? | | #= "" ##! #??????????????????? | | ! [ %= * * = #??????????????????? | | |= s|* ^ [ * * #??????????????????? | | * s = | #??????????????????? | | ## ##### ! #??????????????????? | | # ### # [ ## ##??????????????????? | | # #?# # ##g #???????????????????? | | # #?# ## gT" ## #?????????Y?????????? | | #?# ##[[ "" ## #???????????????????? | | #?# ##[[ ## #???????????????????? | | #?#w ## ## ##########??????????? | | +###### ########## u ! ???????? | | # #????????# l ???????? | | #+#########?######## """ """ g ???????? | | # ??????????# ! # """w """?? ?!????????? | | """ # ??????????# @ """ """?????????????? | | """ # ??????????# " "]]# ????????????? | | """ #???????????# "G" # g ??????????? | | #???????????# " # ?????????? | | #######???????????# ###############?????????? | | ??????????????????########???????????????????????? | | ?????????????????????????????????????????????????? | | ?????????????????????????????????????????????????? | | ?????????????????????????????????????????????????? | | ?????????????????????????????????????????????????? | | ?????????????????????????????????????????????????? | | ?????????????????????????????????????????????????? | | ?????????????????????????????????????????????????? | | ?????????????????????????????????????????????????? | | ?????????????????????????????????????????????????? | | ?????????????????????????????????????????????????? | | ?????????????????????????????????????????????????? | | ?????????????????????????????????????????????????? | | ?????????????????????????????????????????????????? | | ????????????????????????????o????????????????????? | | ?????????????????????????????????????????????????? | | ?????????????????????????????????????????????????? | | ?????????????????????????????????????????????????? | | ?????????????????????????????????????????????????? | | ?????????????????????????????????????????????????? | +----------------------------------------------------+ Best States ------------- Heat Dissipation 31 Energy Generation 14 Energy Capacity 140 Matter Stores 300 Matter Capacity 300 Sight Range 16 Terrain Scan Density 10 Additional Mass Support 6 Armor Coverage 150 Propulsion Shielding 33 Evasion (%) 62 Launcher Accuracy 20 Armor Integrity Analysis 33 Item Schematics ----------------- None Robot Schematics ------------------ None Fabricated ------------ Nothing Alien Tech Used ----------------- None Achievements -------------- None Challenges ------------ None Game ------ Seed StormMappingNegator Manual? 0 Play Time 00:27:11 Cumulative 94.7 hours Start 2019.11.03 @ 00:28:35 End 2019.11.03 @ 03:56:31 Sessions 1 Manual Loads 0 Difficulty Rogue Special Mode None Game No. 152 Rogue 152 Adventurer 0 Explorer 0 Win Type - Total 0 Types 0/0/0/0/0/0/0 Lore% 31 Gallery% 45 Achievement% 33 Wizard Run 0 Options --------- ASCII 0 Keyboard 0 Movement Mouse Keybinds 0 Fullscreen 1 Font 18/SmallcapsGlow Map View 76x50 Tactical HUD 1 Map Filters NONE Filters NONE Steam 1 RUN: 0e916b74-57fe-4813-b5d7-6deb9873a109